bitfinex-derivatives/quotes_BTCF0:USTF0_20250722
["timestamp","ask_amount","ask_price","bid_price","bid_amount"]
[1753178978383,0.98231054,118430.0,118420.0,0.04212002]
[1753178978583,0.98231054,118430.0,118420.0,0.08602002]
[1753178979389,0.972655,118430.0,118420.0,0.14253002]
[1753178979683,0.566875,118430.0,118420.0,0.14253002]
[1753178979875,0.28159978,118430.0,118420.0,0.67215102]
[1753178980080,0.563555,118430.0,118420.0,0.14253002]
[1753178980483,0.567025,118430.0,118420.0,0.14253002]
[1753178980683,0.607845,118430.0,118420.0,0.14253002]
[1753178980882,0.567025,118430.0,118420.0,0.14253002]
[1753178982485,0.638915,118430.0,118420.0,0.14253002]
[1753178984482,0.607845,118430.0,118420.0,0.14253002]
[1753178984676,0.18768218,118430.0,118420.0,0.67215102]
[1753178984990,0.18768218,118430.0,118420.0,1.12298624]
[1753178985188,0.170807,118430.0,118420.0,0.84103102]
[1753178985494,1.54276222,118430.0,118420.0,0.84103102]
[1753178985690,1.54276222,118430.0,118420.0,0.67215102]
[1753178986388,1.54076222,118430.0,118420.0,0.67215102]
[1753178986885,1.258807,118430.0,118420.0,0.67215102]
[1753178987985,1.54076222,118430.0,118420.0,0.67215102]
[1753178988683,0.168807,118430.0,118420.0,0.67215102]
[1753178989091,1.54076222,118430.0,118420.0,0.67215102]
[1753178991791,0.50003222,118430.0,118420.0,0.67215102]
[1753178992689,0.218077,118430.0,118420.0,0.67215102]
[1753178992892,0.50003222,118430.0,118420.0,0.67215102]
[1753178993997,0.218077,118430.0,118420.0,0.67215102]
[1753178994294,0.47175222,118430.0,118420.0,0.67215102]
[1753178994489,0.47175222,118430.0,118420.0,0.69464142]
[1753178994691,0.168807,118430.0,118420.0,0.69464142]
[1753178996396,0.1688068,118430.0,118420.0,0.97659664]
[1753178998199,0.1688068,118430.0,118420.0,1.00667447]
[1753178998794,1.66755942,118440.0,118430.0,0.1688068]
[1753178998993,1.66735942,118440.0,118430.0,0.6733468]
[1753178999903,1.66835942,118440.0,118430.0,0.6958372]
[1753179000403,1.74024942,118440.0,118430.0,0.6958372]
[1753179000905,1.74024942,118440.0,118430.0,0.69598376]
[1753179001200,1.16289,118440.0,118430.0,0.69598376]
[1753179001399,1.092,118440.0,118430.0,0.72606159]
[1753179001599,1.092,118440.0,118430.0,0.71180446]
[1753179001897,0.002,118440.0,118430.0,0.71180446]
[1753179002104,0.002,118440.0,118430.0,1.36375968]
[1753179002405,0.002,118440.0,118430.0,1.03889252]
[1753179003604,0.001,118440.0,118430.0,1.03889252]
[1753179003800,0.001,118440.0,118430.0,1.00881469]
[1753179004309,0.1687925,118440.0,118430.0,0.72685947]
[1753179004605,1.64244225,118450.0,118440.0,0.2243425]
[1753179004806,1.68306225,118450.0,118440.0,0.70352406]
[1753179005912,1.68506225,118450.0,118440.0,0.70352406]
[1753179007315,1.71613225,118450.0,118440.0,0.70352406]
[1753179009412,1.27788553,118450.0,118440.0,0.70352406]
[1753179009620,1.10910723,118450.0,118440.0,1.00042056]
[1753179009814,0.01910723,118450.0,118440.0,1.00042056]
[1753179011422,0.18688553,118450.0,118440.0,1.00042056]
[1753179011721,0.01810723,118450.0,118440.0,0.71846534]
[1753179011911,0.01710723,118450.0,118440.0,0.71846534]
[1753179012619,0.01710723,118450.0,118440.0,1.00042056]
[1753179012820,0.01710723,118450.0,118440.0,1.33042056]
[1753179013321,0.01710723,118450.0,118440.0,1.00058272]
[1753179013520,0.01710723,118450.0,118440.0,1.33058272]
[1753179013822,0.01710723,118450.0,118440.0,1.0486275]
[1753179014027,0.01710723,118450.0,118440.0,1.33058272]
[1753179014215,0.01710723,118450.0,118440.0,1.30528772]
[1753179014416,0.01710723,118450.0,118440.0,0.95528772]
[1753179015123,0.01710723,118450.0,118440.0,1.27528772]
[1753179016018,1.0902,118460.0,118450.0,0.168772]
[1753179016222,1.09,118460.0,118450.0,0.99891651]
[1753179016421,1.09,118460.0,118450.0,1.30891651]
[1753179016626,0.0002,118470.0,118460.0,0.2979778]
[1753179016923,1.82674922,118480.0,118470.0,0.3108435]
[1753179016924,1.3367009,118480.0,118470.0,0.3108435]
[1753179017114,1.3365009,118480.0,118470.0,0.69427745]
[1753179017625,1.61845612,118480.0,118470.0,0.69427745]
[1753179017822,1.63083612,118480.0,118470.0,0.69427745]
[1753179018024,1.63083612,118480.0,118470.0,0.72445758]
[1753179018224,1.63083612,118480.0,118470.0,0.70182363]
[1753179018423,1.63083612,118480.0,118470.0,0.72444018]
[1753179018625,1.63283612,118480.0,118470.0,0.73281268]
[1753179018826,0.51921612,118480.0,118470.0,0.73281268]
[1753179019428,0.52221612,118480.0,118470.0,0.73281268]
[1753179019917,0.2402609,118480.0,118470.0,0.73281268]
[1753179021127,0.2402609,118480.0,118470.0,0.72444018]
[1753179021426,0.59157612,118480.0,118470.0,0.72444018]
[1753179024834,0.52221612,118480.0,118470.0,0.72444018]
[1753179025520,1.61221612,118480.0,118470.0,0.72444018]
[1753179027133,1.65165612,118480.0,118470.0,0.72444018]
[1753179027933,1.3697009,118480.0,118470.0,0.72444018]
[1753179028134,1.65165612,118480.0,118470.0,0.72444018]
[1753179028330,1.68157612,118480.0,118470.0,0.72444018]
[1753179029426,1.68157612,118480.0,118470.0,0.70182363]
[1753179029823,1.96353134,118480.0,118470.0,0.6716435]
[1753179030023,1.68157612,118480.0,118470.0,0.6716435]
[1753179032532,0.3046296,118470.0,118460.0,0.7574296]
[1753179032831,0.58658482,118470.0,118460.0,0.3904896]
[1753179033633,0.58758482,118470.0,118460.0,0.3904896]
[1753179033830,0.58758482,118470.0,118460.0,0.3482996]
[1753179034035,0.58758482,118470.0,118460.0,0.3275496]
[1753179034436,0.58858482,118470.0,118460.0,0.3275496]
[1753179035136,0.58858482,118470.0,118450.0,0.7203258]
[1753179035137,0.2229039,118460.0,118450.0,0.7203258]
[1753179035339,0.58659912,118460.0,118450.0,0.7203258]
[1753179035630,0.58659912,118460.0,118450.0,0.7410758]
[1753179035833,0.58659912,118460.0,118450.0,0.7751258]
[1753179036939,0.58659912,118460.0,118450.0,0.7281958]
[1753179037640,0.58659912,118460.0,118450.0,0.7751258]
[1753179039842,0.58659912,118460.0,118450.0,0.82792777]
[1753179040038,0.58659912,118460.0,118450.0,0.80530593]
[1753179040339,0.58659912,118460.0,118450.0,0.78623433]
[1753179041542,0.59503234,118460.0,118450.0,0.78623433]
[1753179042150,0.59503234,118460.0,118450.0,0.80890007]
[1753179043039,0.59503234,118460.0,118450.0,0.44810007]
[1753179043240,0.59503234,118460.0,118450.0,0.41791994]
[1753179043438,0.59503234,118460.0,118450.0,0.39889994]
[1753179044241,0.59503234,118460.0,118450.0,0.41142994]
[1753179044541,0.58659912,118460.0,118450.0,0.41142994]
[1753179044844,0.59509724,118460.0,118450.0,0.41732994]
[1753179048936,0.06652,118460.0,118450.0,0.77812994]
[1753179049141,0.56025012,118470.0,118460.0,0.309262]
[1753179049334,1.45966971,118480.0,118470.0,0.1687478]
[1753179049534,1.57072271,118480.0,118470.0,0.6700478]
[1753179049739,1.64093271,118480.0,118470.0,0.6700478]
[1753179049946,1.64917016,118480.0,118470.0,0.3092478]
[1753179050141,1.93112538,118480.0,118470.0,0.07395]
[1753179050446,0.3061072,118470.0,118460.0,0.3877249]
[1753179050647,0.58806242,118470.0,118460.0,0.3751949]
[1753179051537,0.58806242,118470.0,118460.0,0.35567254]
[1753179052141,0.58806242,118470.0,118460.0,0.36820254]
[1753179052850,0.58906242,118470.0,118460.0,0.37410254]
[1753179055145,0.59006242,118470.0,118460.0,0.37410254]
[1753179055848,0.59006242,118470.0,118460.0,0.73490254]
[1753179056048,0.59006242,118470.0,118460.0,0.37410254]
[1753179057051,0.56104242,118470.0,118460.0,0.76508267]
[1753179057246,0.51985242,118470.0,118460.0,0.76508267]
[1753179058451,0.56104242,118470.0,118460.0,0.76508267]
[1753179058649,0.59006242,118470.0,118460.0,0.76508267]
[1753179059852,0.59006242,118470.0,118460.0,0.73490254]
[1753179060852,0.59006242,118470.0,118460.0,0.73492229]
[1753179062544,0.59006242,118470.0,118460.0,0.76510242]
[1753179064158,0.59006242,118470.0,118460.0,0.74241693]
[1753179065548,0.002,118470.0,118460.0,1.02437215]
[1753179065749,0.002,118470.0,118460.0,1.06966144]
[1753179066350,0.1707474,118470.0,118460.0,1.06966144]
[1753179066553,0.1707474,118470.0,118460.0,0.74241693]
[1753179067747,0.45270262,118470.0,118460.0,0.74241693]
[1753179068754,0.45873262,118470.0,118460.0,0.74241693]
[1753179069658,0.50712262,118470.0,118460.0,0.74241693]
[1753179069858,0.50712262,118470.0,118460.0,0.7122368]
[1753179070759,0.58648262,118470.0,118460.0,0.7122368]
[1753179075761,0.58648262,118470.0,118460.0,0.73493125]
[1753179075962,0.53809262,118470.0,118460.0,0.68681125]
[1753179077563,0.45270262,118470.0,118460.0,0.59443125]
[1753179079865,0.45270262,118470.0,118460.0,0.64720622]
[1753179082059,0.45270262,118470.0,118460.0,0.5717368]
[1753179082367,0.45270262,118470.0,118460.0,0.61702609]
[1753179082569,0.1707474,118470.0,118460.0,0.61702609]
[1753179082762,0.45270262,118470.0,118460.0,0.61702609]
[1753179086869,0.1707474,118470.0,118460.0,0.61702609]
[1753179087071,0.45270262,118470.0,118460.0,0.61702609]
[1753179089871,0.45270262,118470.0,118460.0,0.6020258]
[1753179090270,0.45270262,118470.0,118460.0,0.64731509]
[1753179090766,0.1707474,118470.0,118460.0,0.64731509]
[1753179090975,0.002,118470.0,118460.0,1.27898131]
[1753179091273,0.002,118470.0,118460.0,0.89898131]
[1753179091472,0.002,118470.0,118460.0,1.21369202]
[1753179091673,0.002,118470.0,118460.0,1.27382424]
[1753179092375,0.002,118470.0,118460.0,0.85369202]
[1753179093075,0.002,118470.0,118460.0,1.19369202]
[1753179093569,0.002,118470.0,118460.0,0.85369202]
[1753179094278,0.002,118470.0,118460.0,1.22369202]
[1753179095075,0.45270262,118470.0,118460.0,0.61712038]
[1753179095475,0.28395522,118470.0,118460.0,0.61712038]
[1753179099580,0.002,118470.0,118460.0,0.61712038]
[1753179099779,0.28395522,118470.0,118460.0,0.61712038]
[1753179101383,0.28395522,118470.0,118460.0,0.91352038]
[1753179102786,0.45270262,118470.0,118460.0,0.91352038]
[1753179104887,0.1707474,118470.0,118460.0,0.91352038]
[1753179105090,0.45270262,118470.0,118460.0,0.55272038]
[1753179105790,0.45270262,118470.0,118460.0,0.91352038]
[1753179106385,0.45270262,118470.0,118460.0,0.94378558]
[1753179106586,0.45270262,118470.0,118460.0,0.898402]
[1753179107488,0.45270262,118470.0,118460.0,0.602002]
[1753179108091,0.45270262,118470.0,118460.0,0.26391107]
[1753179108292,0.45270262,118470.0,118460.0,0.26391129]
[1753179109893,0.45270262,118470.0,118460.0,0.241202]
[1753179112394,0.45270262,118470.0,118460.0,0.602002]
[1753179113896,0.1707474,118470.0,118460.0,0.602002]
[1753179114098,0.45270262,118470.0,118460.0,0.602002]
[1753179119004,0.45270262,118470.0,118460.0,0.241202]
[1753179119995,0.45270262,118470.0,118460.0,0.2109368]
[1753179120199,0.1687617,118460.0,118450.0,0.22939178]
[1753179120503,0.45071692,118460.0,118450.0,0.29158498]
[1753179120699,0.45071692,118460.0,118450.0,0.27158498]
[1753179120899,0.45071692,118460.0,118450.0,0.25210081]
[1753179122002,0.45071692,118460.0,118450.0,0.59019178]
[1753179122202,0.45071692,118460.0,118450.0,0.25209792]
[1753179122501,0.45071692,118460.0,118450.0,0.61289875]
[1753179124400,0.45071692,118460.0,118450.0,0.55228297]
[1753179124601,0.45071692,118460.0,118450.0,0.168776]
[1753179125393,0.45071692,118460.0,118440.0,0.4873916]
[1753179125593,0.45071692,118460.0,118440.0,0.2087796]
[1753179125594,0.45073112,118450.0,118440.0,0.2087796]
[1753179126102,0.45073112,118450.0,118440.0,0.5695796]
[1753179126302,0.45073112,118450.0,118440.0,0.2087796]
[1753179126700,0.45073112,118450.0,118440.0,0.5705796]
[1753179127404,0.45073112,118450.0,118440.0,0.2097796]
[1753179127804,0.1687759,118450.0,118440.0,0.5705796]
[1753179128005,0.45073112,118450.0,118440.0,0.5705796]
[1753179128503,0.45073112,118450.0,118440.0,0.5715796]
[1753179128697,0.2111608,118460.0,118450.0,0.1687759]
[1753179128904,0.2109608,118460.0,118450.0,0.81153112]
[1753179129104,0.2109608,118460.0,118450.0,0.5295759]
[1753179129502,0.1687697,118460.0,118450.0,0.81153112]
[1753179129707,0.57748332,118470.0,118460.0,0.1687617]
[1753179129906,0.57728332,118470.0,118460.0,0.55226867]
[1753179130302,0.57728332,118470.0,118460.0,0.58253387]
[1753179130806,0.57828332,118470.0,118460.0,0.58253387]
[1753179131006,0.57828332,118470.0,118460.0,0.5598269]
[1753179131906,0.57928332,118470.0,118460.0,0.5598269]
[1753179132807,0.2973281,118470.0,118460.0,0.5598269]
[1753179133007,0.57928332,118470.0,118460.0,0.5598269]
[1753179133608,0.2973281,118470.0,118460.0,0.5598269]
[1753179133808,0.57928332,118470.0,118460.0,0.5598269]
[1753179139115,0.2973281,118470.0,118460.0,0.5598269]
[1753179139314,0.57928332,118470.0,118460.0,0.5598269]
[1753179141212,0.57928332,118470.0,118460.0,0.58254511]
[1753179144016,0.57928332,118470.0,118460.0,0.5598269]
[1753179145123,0.57928332,118470.0,118460.0,0.5825483]
[1753179145923,0.57928332,118470.0,118460.0,0.5598269]
[1753179147725,0.57928332,118470.0,118460.0,0.1990269]
[1753179147919,0.94008332,118470.0,118460.0,0.1990269]
[1753179148114,0.94008332,118470.0,118460.0,0.22175024]
[1753179149625,0.94008332,118470.0,118460.0,0.19148504]
[1753179149925,0.94008332,118470.0,118460.0,0.22175024]
[1753179150721,0.57928332,118470.0,118460.0,0.22175024]
[1753179151117,0.57928332,118470.0,118460.0,0.5598269]
[1753179151427,0.57928332,118470.0,118460.0,0.1990269]
[1753179152718,0.57928332,118470.0,118460.0,0.5598269]
[1753179154630,0.94008332,118470.0,118460.0,0.1990269]
[1753179154834,0.94008332,118470.0,118460.0,0.0302652]
[1753179155031,0.94008332,118470.0,118460.0,0.1990264]
[1753179157936,1.06691553,118470.0,118460.0,0.0302652]
[1753179159939,1.10909333,118470.0,118460.0,0.19150914]
[1753179160238,1.12610687,118470.0,118460.0,0.19150914]
[1753179160638,0.72311697,118470.0,118460.0,0.19150914]
[1753179162042,0.27213964,118470.0,118460.0,0.55230914]
[1753179162241,0.55409486,118470.0,118460.0,0.5295613]
[1753179162740,0.55409486,118470.0,118460.0,0.55230914]
[1753179163843,0.55409486,118470.0,118460.0,0.5295613]
[1753179168045,0.51190496,118470.0,118460.0,0.5295613]
[1753179168346,0.002,118470.0,118460.0,0.81151652]
[1753179169941,0.1707471,118470.0,118460.0,0.5295613]
[1753179170149,0.002,118470.0,118460.0,0.81151652]
[1753179170436,0.1707471,118470.0,118460.0,0.5295613]
[1753179171539,0.45270232,118470.0,118460.0,0.5295613]
[1753179171735,0.28395522,118470.0,118460.0,0.5295613]
[1753179172046,0.45270222,118470.0,118460.0,0.5295613]
[1753179172545,0.170747,118470.0,118460.0,0.5295613]
[1753179174047,0.45270222,118470.0,118460.0,0.5295613]
[1753179177049,0.45270222,118470.0,118460.0,0.59017617]
[1753179177852,0.45270222,118470.0,118460.0,0.22937617]
[1753179178243,0.45270222,118470.0,118460.0,0.1687613]
[1753179181548,0.170747,118470.0,118460.0,0.5295613]
[1753179181751,0.45270222,118470.0,118460.0,0.5295613]
[1753179181951,0.45270222,118470.0,118460.0,0.19149118]
[1753179182152,0.170747,118470.0,118460.0,0.1687613]
[1753179182353,0.45270222,118470.0,118460.0,0.55229118]
[1753179182753,0.45270222,118470.0,118460.0,0.5295613]
[1753179183155,0.45270222,118470.0,118460.0,0.55229118]
[1753179184155,0.45270222,118470.0,118460.0,0.1687613]
[1753179184556,0.45270222,118470.0,118460.0,0.19149118]
[1753179184751,0.45270222,118470.0,118460.0,0.5295613]
[1753179185152,0.45270222,118470.0,118460.0,0.55229118]
[1753179185359,0.1687613,118460.0,118450.0,0.29447993]
[1753179185561,0.45071652,118460.0,118450.0,0.29447993]
[1753179185749,0.45071652,118460.0,118450.0,0.65527993]
[1753179186260,0.1687613,118460.0,118450.0,0.65527993]
[1753179186461,0.45071652,118460.0,118450.0,0.65527993]
[1753179187153,0.45071652,118460.0,118450.0,0.29447993]
[1753179187356,0.1687613,118460.0,118450.0,0.29447993]
[1753179187660,0.45071652,118460.0,118450.0,0.29447993]
[1753179188052,0.1687613,118460.0,118450.0,0.29447993]
[1753179188353,0.45071652,118460.0,118450.0,0.29447993]
[1753179188862,0.45071652,118460.0,118450.0,0.27175005]
[1753179189863,0.45071652,118460.0,118450.0,0.31720982]
[1753179192764,0.45071652,118460.0,118450.0,0.06405892]
[1753179192966,0.45071652,118460.0,118450.0,0.04545977]
[1753179193165,0.45071652,118460.0,118450.0,0.21423527]
[1753179193465,0.45071652,118460.0,118450.0,0.24454248]
[1753179193763,0.45071652,118460.0,118450.0,0.21423527]
[1753179194263,0.45071652,118460.0,118450.0,0.24454206]
[1753179194463,0.45071652,118460.0,118450.0,0.21423527]
[1753179196263,0.1687613,118460.0,118450.0,0.57503527]
[1753179196566,0.45071652,118460.0,118450.0,0.57503527]
[1753179196865,0.2111483,118470.0,118460.0,0.1687613]
[1753179197163,1.10708255,118480.0,118470.0,0.1687471]
[1753179197367,1.27561535,118480.0,118470.0,0.55226855]
[1753179198269,1.27861535,118480.0,118470.0,0.55226855]
[1753179198770,1.28061535,118480.0,118470.0,0.55226855]
[1753179199469,1.56257057,118480.0,118470.0,0.55226855]
[1753179199770,1.56257057,118480.0,118470.0,0.56059277]
[1753179199962,1.56257057,118480.0,118470.0,0.5908915]
[1753179200168,1.28061535,118480.0,118470.0,0.56817005]
[1753179202067,1.56257057,118480.0,118470.0,0.56817005]
[1753179202269,1.28061535,118480.0,118470.0,0.56817005]
[1753179202468,1.56257057,118480.0,118470.0,0.58333109]
[1753179202670,0.02188255,118480.0,118470.0,0.86528631]
[1753179203066,0.02188255,118480.0,118470.0,0.58333109]
[1753179203675,0.19061535,118480.0,118470.0,0.58333109]
[1753179207377,0.19061535,118480.0,118470.0,0.57500687]
[1753179207572,0.47257057,118480.0,118470.0,0.57500687]
[1753179208581,0.47257057,118480.0,118470.0,0.58326921]
[1753179209878,0.47257057,118480.0,118470.0,0.5605012]
[1753179210378,0.47257057,118480.0,118470.0,0.55223886]
[1753179210577,0.47257057,118480.0,118470.0,0.56083659]
[1753179212379,0.19061535,118480.0,118470.0,0.56083659]
[1753179212980,0.1737328,118480.0,118470.0,0.56083659]
[1753179213275,0.005,118480.0,118470.0,0.84279181]
[1753179213583,0.005,118480.0,118470.0,0.8730475]
[1753179214478,0.005,118480.0,118470.0,0.84279181]
[1753179215178,0.005,118480.0,118470.0,1.15279181]
[1753179216482,0.005,118480.0,118470.0,1.16035574]
[1753179218177,0.005,118480.0,118470.0,0.56840052]
[1753179218482,0.005,118480.0,118470.0,1.21035574]
[1753179218886,0.005,118480.0,118470.0,0.85035574]
[1753179219288,0.005,118480.0,118470.0,1.22035574]
[1753179219885,0.005,118480.0,118470.0,1.23555982]
[1753179223987,0.005,118480.0,118470.0,1.35890805]
[1753179224894,0.0002,118490.0,118480.0,0.1687327]
[1753179225093,0.22842881,118500.0,118490.0,0.1687185]
[1753179225292,1.31822881,118500.0,118490.0,0.55974086]
[1753179226093,1.27605261,118500.0,118490.0,0.55974086]
[1753179226690,1.27905261,118500.0,118490.0,0.55974086]
[1753179226891,1.27905261,118500.0,118490.0,0.62685279]
[1753179227396,1.28005261,118500.0,118490.0,0.62685279]
[1753179229602,1.56200783,118500.0,118490.0,0.62685279]
[1753179229899,1.56200783,118500.0,118490.0,0.64196397]
[1753179230599,1.28005261,118500.0,118490.0,0.64196397]
[1753179230795,1.56200783,118500.0,118490.0,0.64196397]
[1753179235104,1.28005261,118500.0,118490.0,0.64196397]
[1753179235299,1.56200783,118500.0,118490.0,0.64196397]
[1753179236001,1.56200783,118500.0,118490.0,0.64313397]
[1753179236903,0.02133541,118500.0,118490.0,0.92508919]
[1753179237198,0.02133541,118500.0,118490.0,0.87975565]
[1753179237400,0.0002,118510.0,118500.0,0.1687043]
[1753179237598,0.0002,118520.0,118510.0,0.16869]
[1753179237793,1.62515852,118530.0,118520.0,0.1686758]
[1753179237998,1.62495852,118530.0,118520.0,0.5823573]
[1753179240006,1.62495852,118530.0,118520.0,0.5521393]
[1753179240210,1.09,118530.0,118520.0,0.84164902]
[1753179240403,1.2586616,118530.0,118520.0,0.84164902]
[1753179240603,1.2586616,118530.0,118520.0,0.5596938]
[1753179240799,1.54061682,118530.0,118520.0,0.1988938]
[1753179241204,1.54061682,118530.0,118520.0,0.5596938]
[1753179241706,1.2586616,118530.0,118520.0,0.5596938]
[1753179242206,1.54061682,118530.0,118520.0,0.5596938]
[1753179242707,1.54061682,118530.0,118520.0,0.58233693]
[1753179244410,1.54061682,118530.0,118520.0,0.58350693]
[1753179244805,1.54061682,118530.0,118520.0,0.22270693]
[1753179245007,1.54061682,118530.0,118520.0,0.55328893]
[1753179245207,1.54061682,118530.0,118520.0,0.58350693]
[1753179245404,1.54061682,118530.0,118520.0,0.55328893]
[1753179249113,1.54061682,118530.0,118520.0,0.5306458]
[1753179249313,1.54061682,118530.0,118520.0,0.55327294]
[1753179250109,2.12909682,118530.0,118520.0,0.55327294]
[1753179254518,1.8471416,118530.0,118520.0,0.55327294]
[1753179254713,1.8471414,118530.0,118520.0,0.55327294]
[1753179255115,1.2586614,118530.0,118520.0,0.55327294]
[1753179255321,1.67844,118530.0,118520.0,0.84348718]
[1753179255620,1.8471014,118530.0,118520.0,0.84348718]
[1753179255813,1.8471014,118530.0,118520.0,0.55327294]
[1753179256516,1.8470614,118530.0,118520.0,0.83522816]
[1753179257015,1.8470614,118530.0,118520.0,0.55327294]
[1753179257223,1.8470614,118530.0,118520.0,0.56164904]
[1753179258122,2.12901662,118530.0,118520.0,0.56164904]
[1753179258720,1.8470614,118530.0,118520.0,0.56164904]
[1753179259922,1.8470614,118530.0,118520.0,0.5390219]
[1753179260118,1.8470614,118530.0,118520.0,0.56164904]
[1753179260723,2.12901662,118530.0,118520.0,0.56164904]
[1753179262525,1.8470614,118530.0,118520.0,0.56164904]
[1753179262725,2.12901662,118530.0,118520.0,0.56164904]
[1753179263029,2.12901662,118530.0,118520.0,0.55327294]
[1753179263221,2.48981662,118530.0,118520.0,0.00117]
[1753179263626,2.77177184,118530.0,118520.0,0.00117]
[1753179263823,2.94051584,118530.0,118520.0,0.00117]
[1753179264028,0.16869,118510.0,118500.0,0.04171266]
[1753179264228,1.03900522,118510.0,118500.0,0.04171266]
[1753179264429,1.39980522,118510.0,118500.0,0.04171266]
[1753179265223,1.39980522,118510.0,118500.0,0.04371266]
[1753179265623,1.39980522,118510.0,118500.0,0.07393066]
[1753179266128,1.39980522,118510.0,118500.0,0.04371266]
[1753179266518,1.40831977,118510.0,118500.0,0.04571266]
[1753179266830,1.40831977,118510.0,118500.0,0.02308552]
[1753179268131,1.40831977,118510.0,118500.0,0.02108552]
[1753179268725,1.40931977,118510.0,118500.0,0.01908552]
[1753179269032,1.04851977,118510.0,118500.0,0.01908552]
[1753179269229,1.11885,118510.0,118500.0,0.18778972]
[1753179269430,1.40080522,118510.0,118500.0,0.18778972]
[1753179269730,1.40080522,118510.0,118500.0,0.01908552]
[1753179270433,1.40936344,118510.0,118500.0,0.01908552]
[1753179271133,0.1687043,118500.0,118490.0,0.32017793]
[1753179271334,0.45065952,118500.0,118490.0,0.33017793]
[1753179273435,0.7571043,118500.0,118490.0,0.33017793]
[1753179273629,0.51010207,118510.0,118500.0,0.1687043]
[1753179273934,0.50990207,118510.0,118500.0,0.1687043]
[1753179274135,0.60547235,118510.0,118500.0,0.45065952]
[1753179274433,0.77416235,118510.0,118500.0,0.45065952]
[1753179274625,0.77416235,118510.0,118500.0,0.5295043]
[1753179274825,0.60547235,118510.0,118500.0,0.5295043]
[1753179275125,0.01707235,118510.0,118500.0,0.5295043]
[1753179275330,0.60547235,118510.0,118500.0,0.81245952]
[1753179275528,0.01707235,118510.0,118500.0,0.81245952]
[1753179275725,0.01707235,118510.0,118500.0,1.76085952]
[1753179276033,0.01707235,118510.0,118500.0,1.71725952]
[1753179276234,0.01707235,118510.0,118500.0,1.42085952]
[1753179276635,0.01707235,118510.0,118500.0,1.42285952]
[1753179276828,0.0002,118520.0,118510.0,0.16869]
[1753179277031,1.3431948,118530.0,118520.0,0.1686758]
[1753179277228,1.9313948,118530.0,118520.0,0.5294758]
[1753179278130,0.7570631,118530.0,118520.0,0.5294758]
[1753179279132,0.1686631,118530.0,118520.0,0.5294758]
[1753179280844,0.1686631,118530.0,118520.0,0.58234786]
[1753179281139,0.1686631,118530.0,118520.0,0.59064342]
[1753179281336,0.1686631,118530.0,118520.0,0.56043081]
[1753179281537,0.1686631,118530.0,118520.0,0.59064342]
[1753179281737,2.21350332,118540.0,118530.0,0.1686615]
[1753179281938,2.21330332,118540.0,118530.0,0.5294615]
[1753179283539,2.21430332,118540.0,118530.0,0.5294615]
[1753179283739,1.12430332,118540.0,118530.0,0.5294615]
[1753179284639,1.2586615,118530.0,118520.0,1.18260825]
[1753179284942,2.12893672,118530.0,118520.0,0.23348825]
[1753179286536,1.8469815,118530.0,118520.0,0.23348825]
[1753179286739,2.12893672,118530.0,118520.0,0.23348825]
[1753179287240,2.12893672,118530.0,118520.0,0.59428825]
[1753179287442,1.54061672,118530.0,118520.0,0.59428825]
[1753179287845,2.12889672,118530.0,118520.0,0.59428825]
[1753179289148,1.54061672,118530.0,118520.0,0.59428825]
[1753179289343,2.12889672,118530.0,118520.0,0.59428825]
[1753179289747,2.12889672,118530.0,118520.0,0.23348825]
[1753179290042,2.12889672,118530.0,118520.0,0.24104141]
[1753179290438,2.48969672,118530.0,118520.0,0.24104141]
[1753179290638,1.03889672,118530.0,118520.0,0.23349412]
[1753179290843,1.03889672,118530.0,118520.0,0.24104141]
[1753179292144,0.45061672,118530.0,118520.0,0.24104141]
[1753179292353,1.03885672,118530.0,118520.0,0.24104141]
[1753179292649,1.03885672,118530.0,118520.0,0.23349243]
[1753179296251,1.03885672,118530.0,118520.0,0.26370504]
[1753179296647,0.1686615,118530.0,118520.0,0.26370504]
[1753179296855,2.12885672,118530.0,118520.0,0.26370504]
[1753179297054,2.12881672,118530.0,118520.0,0.26370504]
[1753179297443,2.12881672,118530.0,118520.0,0.24104141]
[1753179298452,1.54061672,118530.0,118520.0,0.24104141]
[1753179298653,2.12881672,118530.0,118520.0,0.24104141]
[1753179299249,2.12881672,118530.0,118520.0,0.60184141]
[1753179299449,0.4453285,118540.0,118530.0,0.1686615]
[1753179299749,0.7568576,118540.0,118530.0,0.83408527]
[1753179299955,2.12881282,118540.0,118530.0,0.55213005]
[1753179300651,2.12981282,118540.0,118530.0,0.02266855]
[1753179300846,2.12981282,118540.0,118530.0,0.19133015]
[1753179301047,2.49061282,118540.0,118530.0,0.1686616]
[1753179301453,2.12981282,118540.0,118530.0,0.1686616]
[1753179301750,2.12981282,118540.0,118530.0,0.19133015]
[1753179302351,2.49061282,118540.0,118530.0,0.19133015]
[1753179302554,2.12981282,118540.0,118530.0,0.19133015]
[1753179302753,2.49061282,118540.0,118530.0,0.19133015]
[1753179303256,2.49061282,118540.0,118530.0,0.02266855]
[1753179303453,0.1686615,118530.0,118520.0,0.19134435]
[1753179303657,0.81141672,118530.0,118520.0,0.19134435]
[1753179303958,0.45061672,118530.0,118520.0,0.19134435]
[1753179304352,0.81141672,118530.0,118520.0,0.19134435]
[1753179304752,0.81141672,118530.0,118520.0,0.02266855]
[1753179305752,0.81141672,118530.0,118520.0,0.1686758]
[1753179306054,0.1686758,118520.0,118510.0,0.64403561]
[1753179306358,1.03883102,118520.0,118510.0,0.64403561]
[1753179306546,0.45063102,118520.0,118510.0,0.64403561]
[1753179306749,0.7568758,118520.0,118510.0,0.64403561]
[1753179307352,0.32432152,118530.0,118510.0,0.47635721]
[1753179307560,0.0002,118530.0,118520.0,0.84169014]
[1753179307756,0.8425047,118540.0,118530.0,0.1686615]
[1753179307949,1.12425992,118540.0,118530.0,0.19135222]
[1753179308759,0.8423047,118540.0,118530.0,0.19135222]
[1753179309060,1.12425992,118540.0,118530.0,0.19135222]
[1753179309262,0.8423047,118540.0,118530.0,0.19135222]
[1753179309961,0.8423047,118540.0,118530.0,0.23023594]
[1753179310162,0.8001399,118540.0,118530.0,0.23023594]
[1753179310464,0.8002599,118540.0,118530.0,0.55972062]
[1753179310662,0.8002599,118540.0,118530.0,0.56172062]
[1753179311757,0.49277512,118540.0,118530.0,0.56172062]
[1753179312457,0.1686473,118540.0,118530.0,1.43291584]
[1753179312664,0.0002,118550.0,118540.0,0.1686473]
[1753179312864,0.86011072,118560.0,118550.0,0.1686331]
[1753179313066,1.94991072,118560.0,118550.0,0.5294331]
[1753179313465,2.23186594,118560.0,118550.0,0.5294331]
[1753179314261,1.90775302,118560.0,118550.0,0.59738788]
[1753179314461,2.18970824,118560.0,118550.0,0.59738788]
[1753179314669,2.19070824,118560.0,118550.0,0.59738788]
[1753179316569,2.18970824,118560.0,118550.0,0.59738788]
[1753179316768,1.90739302,118560.0,118550.0,0.59738788]
[1753179316972,2.18934824,118560.0,118550.0,0.59738788]
[1753179317167,1.59994824,118560.0,118550.0,0.59738788]
[1753179317368,2.18906824,118560.0,118550.0,0.59738788]
[1753179320668,1.90711302,118560.0,118550.0,0.59738788]
[1753179321466,1.90639302,118560.0,118550.0,0.59738788]